bitfinex/quotes_SOLUSD_20240816
["timestamp","ask_amount","ask_price","bid_price","bid_amount"]
[1723783078581,10.61,142.45,142.43,52.0209]
[1723783079090,21.75508842,142.53,142.43,52.0209]
[1723783079091,23.9277,142.55,142.45,20.0]
[1723783079284,10.61,142.51,142.46,62.67379]
[1723783079489,10.61,142.51,142.47,36.4568]
[1723783079837,10.61,142.51,142.48,45.0]
[1723783080016,10.61,142.51,142.48,52.0183]
[1723783081092,17.6271,142.51,142.48,45.0]
[1723783082513,10.61,142.51,142.48,52.0181]
[1723783083905,7.0167,142.52,142.48,52.0181]
[1723783084106,10.61,142.51,142.48,52.0181]
[1723783084486,10.61,142.51,142.48,45.0]
[1723783088127,7.0167,142.52,142.48,45.0]
[1723783088290,10.61,142.51,142.48,45.0]
[1723783089788,17.6271,142.51,142.48,45.0]
[1723783092195,10.61,142.51,142.48,45.0]
[1723783092393,10.61,142.51,142.48,52.0184]
[1723783094534,10.61,142.51,142.48,45.0]
[1723783094905,17.627,142.51,142.48,45.0]
[1723783095503,10.61,142.49,142.48,45.0]
[1723783095712,17.628,142.49,142.45,7.0196]
[1723783096010,10.61,142.47,142.45,7.0196]
[1723783099015,10.61,142.48,142.46,7.0194]
[1723783099731,10.61,142.48,142.45,24.5695]
[1723783099911,10.61,142.48,142.46,45.0]
[1723783111647,7.0181,142.49,142.46,45.0]
[1723783111843,10.61,142.48,142.46,45.0]
[1723783117380,0.12549,142.52,142.46,45.0]
[1723783117524,10.61,142.5,142.46,45.0]
[1723783118624,7.0151,142.55,142.48,15.0852]
[1723783118863,10.61,142.54,142.5,7.0173]
[1723783119159,10.61,142.54,142.51,45.39981366]
[1723783119360,10.61,142.54,142.51,45.0]
[1723783119527,10.61,142.54,142.51,52.0168]
[1723783119723,10.61,142.54,142.52,7.0164]
[1723783119927,7.55316744,142.56,142.53,45.0]
[1723783119928,11.14856744,142.56,142.53,45.0]
[1723783122377,11.14856744,142.56,142.51,17.5421]
[1723783122378,10.61,142.54,142.51,24.559]
[1723783122676,10.61,142.52,142.5,7.0174]
[1723783122988,10.61,142.52,142.49,7.0179]
[1723783123131,10.61,142.52,142.5,7.0174]
[1723783124247,10.61,142.52,142.51,45.0]
[1723783126765,10.61,142.52,142.5,7.0174]
[1723783128439,10.61,142.52,142.51,45.0]
[1723783129486,10.61,142.52,142.5,7.0174]
[1723783130789,10.61,142.52,142.44,45.74378976]
[1723783130790,0.12549,142.51,142.45,17.5491]
[1723783130987,10.61,142.47,142.45,17.5491]
[1723783131891,7.0177,142.5,142.45,37.5491]
[1723783132058,10.61,142.49,142.46,7.0195]
[1723783132958,10.61,142.49,142.47,45.0]
[1723783134076,10.61,142.49,142.46,7.0195]
[1723783136699,19.3827976,142.49,142.45,24.5689]
[1723783136872,10.61,142.47,142.45,17.5491]
[1723783139192,10.61,142.47,142.45,24.569]
[1723783140804,7.0181,142.49,142.45,24.569]
[1723783140995,10.61,142.48,142.45,24.569]
[1723783149105,7.0177,142.5,142.46,7.0193]
[1723783149319,17.6277,142.5,142.47,45.0]
[1723783150807,10.61,142.48,142.47,45.0]
[1723783151106,10.61,142.48,142.46,45.0]
[1723783151895,10.61,142.48,142.45,24.569]
[1723783153729,10.61,142.46,142.44,15.1982]
[1723783154512,6.1108,142.54,142.47,7.0188]
[1723783154811,10.61,142.5,142.48,45.0]
[1723783156677,10.61,142.5,142.47,45.0]
[1723783156886,10.61,142.48,142.47,45.0]
[1723783159792,10.61,142.48,142.47,52.019]
[1723783160044,10.61,142.48,142.47,45.0]
[1723783160522,7.017,142.51,142.47,45.0]
[1723783160720,10.61,142.49,142.47,45.0]
[1723783165020,10.61,142.49,142.45,24.5696]
[1723783165185,10.61,142.47,142.46,45.0]
[1723783165392,10.61,142.47,142.46,52.0195]
[1723783165718,10.61,142.49,142.46,52.0195]
[1723783173129,10.61,142.47,142.46,45.0]
[1723783182141,10.61,142.47,142.44,15.1982]
[1723783182346,10.61,142.45,142.42,17.553]
[1723783182513,10.61,142.43,142.42,17.553]
[1723783183339,10.61,142.43,142.42,24.5744]
[1723783183519,10.61,142.43,142.42,69.5744]
[1723783185041,10.61,142.43,142.42,45.0]
[1723783187913,10.61,142.43,142.41,23.2797]
[1723783190745,1.75526006,142.47,142.41,23.2797]
[1723783190907,7.27058,142.46,142.41,23.2797]
[1723783191103,10.61,142.43,142.41,23.2797]
[1723783191748,17.5454,142.49,142.42,7.0214]
[1723783192043,10.61,142.48,142.45,7.0199]
[1723783192207,10.61,142.49,142.46,52.0194]
[1723783196046,0.12549,142.51,142.46,45.0]
[1723783196259,10.61,142.52,142.49,20.0]
[1723783196565,10.61,142.52,142.49,27.0176]
[1723783197866,10.61,142.52,142.49,7.0176]
[1723783199364,10.61,142.52,142.45,35.6706]
[1723783199365,10.61,142.5,142.45,15.6706]
[1723783199576,10.61,142.48,142.45,22.6905]
[1723783199749,10.61,142.46,142.45,15.6706]
[1723783202337,10.61,142.48,142.45,67.6906]
[1723783202537,10.61,142.48,142.46,52.0194]
[1723783202751,10.61,142.48,142.46,45.0]
[1723783207278,10.61,142.48,142.45,15.6706]
[1723783207512,10.61,142.46,142.42,42.2776]
[1723783207657,7.0193,142.47,142.43,52.0209]
[1723783207658,10.61,142.44,142.43,52.0209]
[1723783207862,10.61,142.44,142.43,7.0209]
[1723783208496,10.61,142.44,142.42,42.2776]
[1723783208695,10.61,142.44,142.42,22.2776]
[1723783209890,10.61,142.44,142.42,15.2565]
[1723783210052,17.6305,142.44,142.41,17.5542]
[1723783210252,10.61,142.42,142.41,17.5542]
[1723783212290,10.61,142.42,142.41,62.5542]
[1723783213512,10.61,142.42,142.39,7.0227]
[1723783213714,10.61,142.42,142.38,33.5961]
[1723783213891,7.0211,142.43,142.35,17.5616]
[1723783213892,10.61,142.4,142.35,17.5616]
[1723783214081,10.61,142.37,142.34,15.2352]
[1723783214281,10.61,142.35,142.34,15.2352]
[1723783215808,10.61,142.35,142.32,24.5915]
[1723783216311,10.61,142.35,142.32,17.5652]
[1723783217386,17.6349,142.35,142.31,22.3166]
[1723783218009,17.6349,142.35,142.31,15.2899]
[1723783218212,10.61,142.35,142.31,15.2899]
[1723783218716,10.61,142.35,142.32,45.0]
[1723783220283,10.61,142.35,142.32,52.0264]
[1723783222727,17.5543,142.42,142.33,17.68989]
[1723783222881,10.61,142.38,142.34,45.0]
[1723783223598,10.61,142.38,142.35,7.0246]
[1723783223913,10.61,142.38,142.36,45.0]
[1723783224586,10.61,142.38,142.34,7.0252]
[1723783224789,10.61,142.38,142.35,45.0]
[1723783224998,10.61,142.36,142.35,45.0]
[1723783227716,10.61,142.36,142.33,24.5901]
[1723783228027,10.61,142.36,142.34,45.0]
[1723783229019,10.61,142.36,142.33,17.5644]
[1723783229213,0.12549,142.37,142.31,22.3167]
[1723783229214,10.61,142.34,142.31,22.3167]
[1723783229405,10.61,142.32,142.3,24.5947]
[1723783230611,10.61,142.32,142.31,45.0]
[1723783231628,7.15049,142.35,142.31,52.0269]
[1723783231805,10.61,142.33,142.31,52.0269]
[1723783235427,10.61,142.33,142.31,45.0]
[1723783236028,10.61,142.33,142.31,52.0267]
[1723783240435,7.0245,142.36,142.32,7.0264]
[1723783240618,10.61,142.35,142.33,45.0]
[1723783241359,10.61,142.35,142.32,7.0264]
[1723783241851,10.61,142.35,142.31,7.0268]
[1723783242239,17.6349,142.35,142.32,45.0]
[1723783242567,10.61,142.35,142.33,7.0254]
[1723783242724,6.0544,142.42,142.35,7.0249]
[1723783243053,10.61,142.38,142.35,7.0249]
[1723783243233,10.61,142.38,142.36,45.0]
[1723783243924,10.61,142.38,142.36,52.0243]
[1723783245055,10.61,142.38,142.36,45.0]
[1723783248872,0.12549,142.37,142.34,17.5628]
[1723783249060,10.61,142.36,142.34,17.5628]
[1723783250063,10.61,142.36,142.34,24.5882]
[1723783250468,10.61,142.36,142.34,17.5628]
[1723783253374,10.61,142.36,142.34,24.5881]
[1723783258470,10.61,142.38,142.35,52.0248]
[1723783261294,17.6335,142.38,142.35,45.0]
[1723783261598,10.61,142.36,142.34,24.5881]
[1723783263786,11.92631276,142.45,142.35,16.0502]
[1723783263987,17.94583552,142.45,142.38,20.0]
[1723783264192,10.61,142.45,142.41,7.0215]
[1723783264374,10.61,142.45,142.41,7.0218]
[1723783264583,10.61,142.45,142.42,45.0]
[1723783265267,17.63,142.45,142.41,7.0218]
[1723783265567,17.631,142.43,142.37,17.5593]
[1723783265884,10.61,142.41,142.38,45.0]
[1723783266987,10.61,142.41,142.39,7.0229]
[1723783267173,10.61,142.41,142.38,52.0233]
[1723783267375,10.61,142.39,142.36,7.0242]
[1723783270699,10.61,142.39,142.35,16.0502]
[1723783270700,10.61,142.37,142.35,16.0502]
[1723783271066,10.61,142.37,142.35,23.0751]
[1723783272111,10.61,142.37,142.35,7.0249]
[1723783275783,10.61,142.37,142.34,17.5627]
[1723783277108,10.61,142.37,142.34,24.588]
[1723783277816,0.12549,142.36,142.31,33.6091]
[1723783278016,10.61,142.35,142.31,33.6091]
[1723783278701,10.61,142.35,142.32,7.0262]
[1723783280121,10.61,142.33,142.3,7.027]
[1723783282731,10.61,142.33,142.31,7.0268]
[1723783282930,23.7435,142.42,142.32,20.0]
[1723783283129,23.7435,142.42,142.33,45.0]
[1723783283130,7.023,142.39,142.33,45.0]
[1723783283429,17.633,142.39,142.35,7.0247]
[1723783283627,17.633,142.39,142.34,24.5883]
[1723783283927,6.1889,142.42,142.38,7.0234]
[1723783284138,17.6319,142.41,142.37,7.0237]
[1723783284438,17.6319,142.41,142.36,24.5845]
[1723783284604,17.6319,142.41,142.37,45.0]
[1723783285629,7.0208,142.44,142.39,7.0228]
[1723783285944,17.6305,142.44,142.4,69.98067199]
[1723783286323,17.6305,142.44,142.4,62.5553]
[1723783286954,0.12549,142.43,142.4,62.5553]
[1723783291067,10.61,142.45,142.41,7.4246083]
[1723783291293,7.0196,142.46,142.42,45.0]
[1723783291589,10.61,142.45,142.42,45.0]
[1723783293500,10.61,142.45,142.42,52.0212]
[1723783294691,17.5432,142.51,142.43,0.40191104]
[1723783294692,10.61,142.47,142.43,0.40191104]
[1723783295496,10.61,142.47,142.43,20.40191104]
[1723783295788,10.61,142.47,142.44,45.0]
[1723783296160,10.61,142.47,142.44,52.0204]
[1723783296554,10.61,142.47,142.44,45.0]
[1723783296754,10.61,142.45,142.42,24.5745]
[1723783296994,10.61,142.45,142.43,45.0]
[1723783297705,10.61,142.45,142.43,45.40211933]
[1723783297863,10.61,142.45,142.43,45.0]
[1723783298987,10.61,142.45,142.42,24.5745]
[1723783299778,10.61,142.45,142.43,45.0]
[1723783302504,10.61,142.47,142.44,7.0203]
[1723783302798,10.61,142.47,142.45,45.0]
[1723783303977,17.6291,142.47,142.45,45.0]
[1723783304308,17.6291,142.47,142.44,45.0]
[1723783307814,0.12549,142.5,142.44,65.0]
[1723783308023,10.61,142.48,142.45,0.40123718]
[1723783308615,10.61,142.48,142.44,65.0]
[1723783309038,10.61,142.48,142.45,7.0199]
[1723783309204,10.61,142.48,142.46,45.0]
[1723783320442,10.61,142.48,142.45,45.40126545]
[1723783320776,10.61,142.48,142.46,0.40126364]
[1723783321146,10.61,142.48,142.45,60.1649]
[1723783323160,17.6285,142.48,142.45,60.1649]
[1723783323578,10.61,142.48,142.45,60.1649]
[1723783324067,10.61,142.48,142.45,67.1848]
[1723783324456,0.12549,142.5,142.45,60.1649]
[1723783324657,10.61,142.5,142.46,27.0191]
[1723783324866,10.61,142.5,142.47,45.0]
[1723783325180,10.61,142.48,142.47,45.0]
[1723783325380,10.61,142.48,142.46,45.0]
[1723783326176,10.61,142.48,142.46,52.0195]
[1723783327960,10.61,142.49,142.46,52.0195]
[1723783329874,10.61,142.49,142.47,7.019]
[1723783330061,10.61,142.49,142.48,45.0]
[1723783330848,10.61,142.5,142.48,45.0]
[1723783331052,10.61,142.5,142.48,45.40066764]
[1723783331464,10.61,142.5,142.48,45.0]
[1723783331770,10.61,142.51,142.49,7.018]
[1723783331947,10.61,142.51,142.48,69.96507121]
[1723783332378,10.61,142.51,142.49,7.0179]
[1723783332583,10.61,142.51,142.5,45.0]
[1723783335499,10.61,142.51,142.49,7.0179]
[1723783342409,10.61,142.51,142.5,7.0175]
[1723783342615,10.61,142.51,142.5,52.0175]
[1723783345006,0.53856744,142.56,142.51,17.5419]
[1723783345194,10.61,142.55,142.52,45.0]
[1723783345399,10.61,142.53,142.52,45.0]
[1723783346133,10.61,142.53,142.52,52.0162]
[1723783347321,0.53856744,142.56,142.52,52.0162]
[1723783347529,10.61,142.54,142.52,52.0162]
[1723783349923,10.61,142.54,142.52,45.0]
[1723783350231,10.61,142.54,142.51,24.5588]
[1723783351632,7.015,142.55,142.51,24.5588]
[1723783351809,10.61,142.53,142.51,24.5588]
[1723783353030,10.61,142.54,142.52,7.0165]
[1723783359537,10.61,142.54,142.51,24.5588]
[1723783359716,10.61,142.52,142.51,24.5588]
[1723783359914,10.61,142.52,142.51,69.5588]
[1723783360133,10.61,142.53,142.52,7.0164]
[1723783360457,10.61,142.53,142.52,52.0164]
[1723783365654,10.61,142.53,142.51,24.5588]
[1723783369593,10.61,142.53,142.52,7.0165]
[1723783369894,10.61,142.53,142.52,52.0165]
[1723783371374,10.73549,142.53,142.51,17.5419]
[1723783373878,42.56549,142.52,142.46,22.073]
[1723783374101,42.56549,142.52,142.46,22.0733]
[1723783374102,10.61,142.47,142.46,22.0733]
[1723783375187,10.61,142.47,142.46,67.0733]
[1723783376423,13.5923,142.55,142.5,7.0172]
[1723783376731,13.5923,142.55,142.49,17.5446]
[1723783376732,10.61,142.52,142.49,24.5622]
[1723783377087,10.61,142.5,142.49,24.5622]
[1723783377289,10.61,142.5,142.49,69.5622]
[1723783377708,10.61,142.5,142.46,32.72729]
[1723783378011,10.61,142.5,142.47,52.0186]
[1723783380121,10.61,142.5,142.48,7.0184]
[1723783380708,0.12549,142.49,142.46,17.548]
[1723783380932,10.61,142.48,142.46,17.548]
[1723783381138,10.61,142.48,142.45,7.0198]
[1723783381302,10.61,142.48,142.44,7.0203]
[1723783381501,10.61,142.48,142.43,24.5725]
[1723783381502,10.61,142.46,142.43,24.5725]
[1723783381726,10.61,142.46,142.43,17.5517]
[1723783382029,10.61,142.46,142.44,7.0201]
[1723783382233,10.61,142.46,142.43,24.5726]
[1723783382524,10.61,142.44,142.43,24.5726]
[1723783382697,7.019,142.47,142.43,24.5726]
[1723783382900,10.61,142.45,142.43,24.5726]
[1723783384426,10.61,142.45,142.4,17.5555]
[1723783384610,10.61,142.43,142.42,7.0214]
[1723783385215,10.61,142.45,142.42,7.0214]
[1723783385535,10.61,142.45,142.43,0.40212766]
[1723783386129,7.14429,142.48,142.43,52.42302766]
[1723783386332,10.61,142.47,142.43,52.42302766]
[1723783386715,10.61,142.47,142.43,52.0209]
[1723783387710,10.61,142.47,142.44,7.42202588]
[1723783387912,10.61,142.47,142.44,7.0204]
[1723783389435,10.61,142.45,142.43,52.0208]
[1723783392823,0.12549,142.46,142.43,52.0208]
[1723783393022,10.61,142.45,142.43,52.0208]
[1723783394820,10.61,142.45,142.43,7.0208]
[1723783398648,10.61,142.45,142.42,24.5744]
[1723783399552,10.61,142.43,142.39,33.4116]
[1723783399757,10.61,142.41,142.39,15.8552]
[1723783399956,10.61,142.41,142.36,24.2008]
[1723783400360,10.61,142.41,142.38,7.0231]
[1723783400573,10.61,142.39,142.37,7.0237]
[1723783400765,10.61,142.39,142.36,24.5843]
[1723783400948,10.61,142.39,142.36,17.5601]
[1723783402057,10.61,142.39,142.37,7.0239]
[1723783412289,7.14729,142.42,142.38,45.0]
[1723783412470,10.61,142.41,142.38,52.0233]
[1723783413755,17.632,142.41,142.37,7.0236]
[1723783413973,10.61,142.39,142.37,7.0236]
[1723783414356,10.61,142.39,142.36,17.5601]
[1723783414357,10.61,142.39,142.36,24.5844]
[1723783418690,10.61,142.39,142.36,17.5601]
[1723783419005,0.12549,142.38,142.35,22.2228]
[1723783419203,10.61,142.37,142.35,15.1981]
[1723783419365,17.6342,142.37,142.33,24.5896]
[1723783419563,17.6342,142.37,142.31,22.8458]
[1723783419564,10.61,142.35,142.31,22.8458]
[1723783420491,0.12549,142.34,142.31,22.8458]
[1723783422379,10.61,142.35,142.31,22.8458]
[1723783422588,10.61,142.35,142.32,7.0263]
[1723783422589,0.12549,142.35,142.32,7.0263]
[1723783422784,0.12549,142.35,142.32,27.0263]
[1723783423908,0.12549,142.35,142.32,7.0263]
[1723783431912,52.6566,142.44,142.33,20.0]
[1723783432216,17.6332,142.39,142.35,7.0249]
[1723783433422,0.12549,142.38,142.35,7.0249]
[1723783439930,7.0221,142.41,142.36,17.5607]
[1723783440238,17.6321,142.41,142.37,7.0235]
[1723783440403,10.61,142.47,142.42,7.0214]
[1723783441842,0.25098,142.46,142.42,7.0214]
[1723783442131,7.27048,142.46,142.42,7.0214]
[1723783442320,7.0195,142.46,142.42,7.0214]
[1723783443639,0.12549,142.45,142.42,7.0214]
[1723783444842,10.73549,142.45,142.42,7.0214]
[1723783446635,0.12549,142.45,142.42,7.0214]
[1723783446841,0.12549,142.46,142.43,7.0209]
[1723783447141,0.25098,142.46,142.43,7.0209]
[1723783447433,0.25098,142.46,142.41,37.5542]
[1723783447641,0.25098,142.46,142.42,7.0213]
[1723783449429,10.61,142.45,142.42,7.0213]
[1723783449635,10.61,142.45,142.41,44.5761]
[1723783450372,7.27048,142.46,142.42,7.0214]
[1723783450579,17.88048,142.46,142.42,7.0214]
[1723783452096,7.0203,142.45,142.41,37.5542]
[1723783452384,10.61,142.44,142.41,44.5761]
[1723783453893,10.61,142.44,142.42,7.0214]
[1723783456323,17.88058,142.46,142.42,7.0214]
[1723783456477,17.75509,142.46,142.42,7.0214]
[1723783457180,10.73549,142.46,142.42,7.0214]
[1723783459918,10.61,142.44,142.41,44.576]
[1723783460225,10.61,142.44,142.42,7.0213]
[1723783461809,10.61,142.45,142.42,7.0213]
[1723783462297,17.6301,142.45,142.41,44.576]
[1723783462496,10.61,142.45,142.41,44.576]
[1723783463599,10.61,142.45,142.42,7.0214]
[1723783464290,0.12549,142.44,142.41,24.576]
[1723783466823,10.61,142.43,142.39,7.0228]
[1723783467116,7.27148,142.44,142.39,7.0228]
[1723783467117,10.61,142.41,142.39,7.0228]
[1723783467282,10.61,142.41,142.4,7.0224]
[1723783467484,0.12549,142.42,142.4,7.0224]
[1723783474470,10.61,142.43,142.4,7.0224]
[1723783475741,7.27158,142.44,142.38,33.8694]
[1723783475742,10.61,142.41,142.38,33.8694]
[1723783475920,10.61,142.41,142.38,40.8925]
[1723783476837,10.61,142.41,142.39,7.0227]
[1723783477248,10.73549,142.42,142.39,7.0227]
[1723783478734,7.14599,142.44,142.4,7.0223]
[1723783478959,10.73549,142.43,142.4,7.0223]
[1723783485664,17.5459,142.49,142.4,37.5558]
[1723783485884,10.61,142.44,142.41,7.0218]
[1723783489869,0.12549,142.43,142.4,24.5781]
[1723783491902,10.61,142.42,142.4,17.5558]
[1723783496613,0.12549,142.41,142.38,23.3348]
[1723783497505,17.6317,142.42,142.38,23.3348]
[1723783497506,0.12549,142.42,142.39,17.96071068]
[1723783497674,0.12549,142.42,142.4,7.0223]
[1723783498112,0.12549,142.42,142.39,24.98341068]
[1723783498671,0.12549,142.42,142.39,24.5798]
[1723783500926,10.73549,142.42,142.39,24.5798]
[1723783501281,0.12549,142.43,142.4,7.0223]
[1723783501509,0.12549,142.42,142.39,24.5797]
[1723783502717,0.12549,142.42,142.38,36.3116]
[1723783502718,10.86098,142.42,142.38,23.3348]
[1723783503583,10.61,142.41,142.38,23.3348]
[1723783504014,7.27278,142.42,142.38,23.3348]
[1723783504310,10.61,142.41,142.38,23.3348]
[1723783507320,7.27248,142.42,142.38,23.3348]
[1723783507514,10.61,142.41,142.38,23.3348]
[1723783511528,17.632,142.41,142.38,16.3116]
[1723783512537,10.61,142.41,142.38,23.335]
[1723783514003,10.61,142.41,142.38,16.3116]
[1723783514004,10.61,142.39,142.38,16.3116]
[1723783514203,10.61,142.39,142.36,24.5845]
[1723783515836,10.61,142.37,142.36,17.5602]
[1723783516834,7.14749,142.41,142.37,7.0238]
[1723783517042,10.61,142.4,142.37,7.0238]
[1723783519553,10.61,142.4,142.36,24.5845]
[1723783520158,10.61,142.4,142.37,20.0]
[1723783524488,13.53993618,142.48,142.4,7.0224]
[1723783524801,11.61602571,142.51,142.41,65.40257437]
[1723783524958,10.61,142.48,142.42,15.3234]
[1723783525165,7.0183,142.49,142.45,7.0199]
[1723783525166,7.0181,142.49,142.45,7.0199]
[1723783525457,10.61,142.48,142.45,7.0199]
[1723783526088,10.61,142.48,142.44,24.571]
[1723783526298,17.6285,142.48,142.44,24.571]
[1723783526497,7.0177,142.5,142.44,17.5507]
[1723783526663,10.61,142.49,142.45,45.0]
[1723783526869,10.61,142.49,142.46,7.0194]
[1723783529299,7.0171,142.51,142.46,7.0194]
[1723783529569,10.61,142.49,142.46,7.0194]
[1723783532815,10.61,142.49,142.45,52.0198]
[1723783532976,0.12549,142.5,142.46,7.019]
[1723783533186,10.61,142.49,142.46,7.019]
[1723783534814,10.61,142.49,142.47,7.019]
[1723783535175,10.61,142.51,142.48,7.0184]
[1723783537416,10.61,142.49,142.48,7.0184]
[1723783538091,10.61,142.51,142.48,23.2922]
[1723783541639,10.61,142.51,142.48,16.2738]
[1723783541944,10.61,142.49,142.48,16.2738]
[1723783543126,10.61,142.5,142.48,23.2922]
[1723783543304,10.61,142.51,142.48,23.2922]
[1723783545201,7.14169,142.53,142.48,23.2922]
[1723783545406,10.61,142.51,142.48,23.2922]
[1723783546549,7.14169,142.53,142.49,27.0179]
[1723783546747,10.73549,142.53,142.5,7.0173]
[1723783547237,0.12549,142.53,142.5,7.0173]
[1723783547419,10.73549,142.53,142.5,7.0173]
[1723783548946,7.55356744,142.56,142.52,7.0164]
[1723783549254,0.53856744,142.56,142.54,27.0154]
[1723783549619,0.53856744,142.56,142.54,7.0154]
[1723783551324,10.61,142.55,142.53,7.0157]
[1723783551549,10.61,142.55,142.52,24.5569]
[1723783552248,0.12549,142.54,142.51,15.6022]
[1723783552452,10.61,142.53,142.51,15.6022]
[1723783553656,10.61,142.53,142.51,22.6191]
[1723783556439,10.61,142.53,142.51,15.6022]
[1723783556639,17.626,142.53,142.51,15.6022]
[1723783556840,17.626,142.53,142.49,24.5624]
[1723783557534,10.61,142.51,142.49,24.5624]
[1723783558361,0.12549,142.5,142.47,16.3301]
[1723783558539,10.61,142.48,142.45,7.0198]
[1723783558964,10.61,142.46,142.44,23.3504]
[1723783559130,10.61,142.46,142.44,16.3301]
[1723783560734,7.0201,142.45,142.4,20.0]
[1723783560990,1.88045744,142.5,142.4,33.8854]
[1723783560991,10.61,142.42,142.4,33.8854]
[1723783561863,10.61,142.42,142.4,16.3301]
[1723783561864,7.0219,142.41,142.4,16.3301]
[1723783562060,10.73549,142.42,142.37,20.0]
[1723783562291,42.44,142.45,142.29,36.3301]
[1723783562292,7.0243,142.37,142.29,36.3301]
[1723783562493,10.61,142.35,142.33,27.0259]
[1723783562692,10.61,142.35,142.33,20.0]
[1723783563601,10.61,142.35,142.3,37.5679]
[1723783564263,10.61,142.35,142.31,7.0268]
[1723783566056,10.61,142.35,142.33,7.0259]
[1723783566993,10.61,142.36,142.33,7.0259]
[1723783567285,10.61,142.36,142.34,7.0252]
[1723783567664,10.61,142.36,142.33,7.0258]
[1723783570291,7.0234,142.38,142.34,7.0253]
[1723783570592,10.61,142.36,142.34,7.0253]
[1723783572671,10.61,142.36,142.33,7.0259]
[1723783572869,10.61,142.34,142.31,7.0268]
[1723783573082,10.61,142.34,142.29,53.8993]
[1723783573392,10.61,142.34,142.31,17.5668]
[1723783573597,0.12549,142.35,142.32,7.0262]
[1723783573797,10.61,142.34,142.32,7.0262]
[1723783574402,10.61,142.35,142.32,7.0262]
[1723783574769,10.61,142.35,142.33,7.0258]
[1723783575101,0.12549,142.37,142.33,17.5643]
[1723783575264,7.0234,142.38,142.33,17.5643]
[1723783575265,7.0234,142.38,142.33,37.5643]
[1723783575468,10.61,142.37,142.33,37.5643]
[1723783575706,10.61,142.37,142.33,17.5643]
[1723783576009,10.61,142.37,142.34,7.0254]
[1723783577218,10.61,142.35,142.34,7.0254]
[1723783578202,0.12549,142.39,142.35,17.5619]
[1723783578510,10.61,142.38,142.35,17.5619]
[1723783579014,10.61,142.38,142.35,24.5867]
[1723783579922,10.61,142.36,142.34,7.0252]
[1723783581192,10.61,142.36,142.35,7.0249]
[1723783582718,7.0231,142.39,142.35,7.0249]
[1723783582920,10.61,142.37,142.35,7.0249]
[1723783589146,0.12549,142.36,142.34,24.5883]
[1723783590632,10.61,142.37,142.35,7.0249]
[1723783594122,0.12549,142.36,142.33,7.0258]
[1723783594547,0.12549,142.36,142.31,17.5664]
[1723783594548,10.61,142.35,142.31,17.5664]
[1723783594769,10.61,142.35,142.31,24.5929]
[1723783595128,10.61,142.33,142.31,24.5929]